bitfinex/quotes_ETHUSD_20251010
["timestamp","ask_amount","ask_price","bid_price","bid_amount"]
[1760123492115,0.50930359,4045.9,4045.1,0.02472126]
[1760123492344,0.50930359,4045.9,4045.0,1700.62574776]
[1760123492539,0.50930359,4046.1,4045.0,1703.097914]
[1760123492745,2.70830359,4046.0,4045.1,14.5]
[1760123493078,0.50930359,4045.9,4045.1,14.5]
[1760123493260,3.824,4045.8,4045.1,14.5]
[1760123493472,1.36471423,4045.7,4045.0,1700.62574776]
[1760123493697,0.50930359,4045.6,4045.0,1700.62574776]
[1760123493978,0.85541064,4045.1,4045.0,1700.62574776]
[1760123494143,38.31230359,4045.1,4045.0,1700.15074776]
[1760123494342,38.31230359,4045.1,4045.0,1699.71314776]
[1760123494544,40.16466527,4045.1,4045.0,1699.71314776]
[1760123494762,41.87435169,4045.1,4045.0,1697.03653099]
[1760123495074,40.16466527,4045.1,4045.0,1697.03653099]
[1760123495276,42.63679204,4045.1,4045.0,1651.79691323]
[1760123495574,42.63679204,4045.1,4045.0,1591.24299904]
[1760123495875,42.63679204,4045.1,4045.0,1587.41075406]
[1760123496079,36.75379204,4045.1,4045.0,1587.41075406]
[1760123496572,40.57679204,4045.1,4045.0,1587.41075406]
[1760123496777,42.63779204,4045.1,4045.0,1587.41075406]
[1760123497282,4.28166527,4045.1,4045.0,1587.41075406]
[1760123497453,0.50930359,4045.1,4045.0,1587.41075406]
[1760123497956,37.804,4045.1,4045.0,1587.41075406]
[1760123498157,38.31330359,4045.1,4045.0,1587.41075406]
[1760123498576,35.91130359,4045.1,4045.0,1587.41075406]
[1760123498886,31.82930359,4045.1,4045.0,1587.41075406]
[1760123499048,33.10999316,4045.1,4045.0,1587.41075406]
[1760123499249,38.55980359,4045.1,4045.0,1587.41075406]
[1760123499649,41.16780359,4045.1,4045.0,1587.41075406]
[1760123500256,41.16780359,4045.1,4045.0,1586.07211373]
[1760123500457,32.67680359,4045.1,4045.0,1586.07211373]
[1760123500961,38.55880359,4045.1,4045.0,1586.07211373]
[1760123501273,32.67680359,4045.1,4045.0,1586.07211373]
[1760123501473,32.67680359,4045.1,4045.0,1586.07411373]
[1760123501860,39.59024297,4045.1,4045.0,1586.07411373]
[1760123502067,38.55880359,4045.1,4045.0,1586.07411373]
[1760123502456,38.55880359,4045.1,4045.0,1583.37648653]
[1760123502662,40.91930359,4045.1,4045.0,1582.70207973]
[1760123503167,35.03730359,4045.1,4045.0,1582.70207973]
[1760123503369,45.29930359,4045.1,4045.0,1582.70207973]
[1760123503701,47.36030359,4045.1,4045.0,1582.70207973]
[1760123504201,44.75230359,4045.1,4045.0,1582.70207973]
[1760123504407,46.45660252,4045.1,4045.0,1582.70207973]
[1760123505121,32.42930359,4045.1,4045.0,1582.70207973]
[1760123505592,32.42930359,4045.1,4045.0,1573.8981811]
[1760123505593,47.09120252,4045.1,4045.0,1573.8981811]
[1760123505778,45.39290359,4045.1,4045.0,1571.22084358]
[1760123505989,45.64040359,4045.1,4045.0,1563.0204516]
[1760123506181,25.99440359,4045.1,4045.0,1528.43253047]
[1760123506384,15.44417759,4045.1,4045.0,1528.43253047]
[1760123506628,27.01817759,4045.1,4045.0,1521.6364193]
[1760123506836,35.52117759,4045.1,4045.0,1520.10356179]
[1760123506977,48.80299233,4045.1,4045.0,1499.87641908]
[1760123507180,51.60490213,4045.1,4045.0,1469.57120521]
[1760123507408,51.86113129,4045.1,4045.0,1469.57120521]
[1760123507591,30.45231339,4045.1,4045.0,1423.01930254]
[1760123507794,69.96504255,4045.1,4045.0,1312.89740709]
[1760123508122,53.26790359,4045.1,4045.0,1210.47879328]
[1760123508412,18.84845807,4045.1,4045.0,1098.00662396]
[1760123508637,39.34845807,4045.1,4045.0,1085.0603703]
[1760123508780,39.34845807,4045.1,4045.0,1039.10629378]
[1760123508781,31.21245807,4045.1,4045.0,1039.10629378]
[1760123508981,31.45995807,4045.1,4045.0,923.34885349]
[1760123509212,31.84800875,4045.1,4045.0,851.16054705]
[1760123509393,31.79316602,4045.1,4045.0,708.84097932]
[1760123509599,62.83490244,4045.1,4045.0,626.41824542]
[1760123509824,63.61221354,4045.1,4045.0,504.67296268]
[1760123509979,58.87721163,4045.1,4045.0,426.69357464]
[1760123510185,58.87721163,4045.1,4045.0,373.13843783]
[1760123510186,64.23884086,4045.1,4045.0,373.13843783]
[1760123510409,64.06118511,4045.1,4045.0,265.72454413]
[1760123510619,60.00213556,4045.1,4045.0,239.1445804]
[1760123510915,64.22851417,4045.1,4045.0,173.87358663]
[1760123511086,61.31351417,4045.1,4045.0,140.76226387]
[1760123511294,61.31351417,4045.1,4045.0,115.33266713]
[1760123511295,70.7500741,4045.1,4045.0,115.33266713]
[1760123511496,1.0,4044.6,4044.5,2e-08]
[1760123511697,0.6336,4042.0,4039.0,3.932]
[1760123511914,2.5536,4041.6,4039.0,3.932]
[1760123512124,1.0,4043.0,4039.0,0.002]
[1760123512309,18.064849,4041.4,4039.0,0.002]
[1760123512511,1.0,4042.8,4039.3,0.002]
[1760123512708,1.6952265,4043.2,4039.5,0.002]
[1760123512709,18.681849,4042.7,4039.5,0.002]
[1760123512940,18.064849,4041.0,4039.0,0.002]
[1760123513120,10.0,4040.9,4039.0,0.002]
[1760123513421,10.0,4042.1,4039.0,0.005]
[1760123513578,1.29174133,4043.3,4039.0,0.002]
[1760123513776,18.064849,4043.0,4039.7,0.834]
[1760123513982,0.3883487,4043.4,4039.0,0.002]
[1760123513983,18.064849,4043.3,4039.0,0.002]
[1760123514218,18.064849,4042.8,4039.9,3.169]
[1760123514390,0.0043,4042.7,4040.1,0.6336]
[1760123514580,3.39156425,4045.1,4039.9,3.169]
[1760123514581,1.21432585,4042.4,4039.9,0.002]
[1760123514915,2.5536,4041.7,4039.9,0.002]
[1760123515118,2.5536,4041.3,4039.0,0.0017]
[1760123515415,2.5536,4041.3,4034.9,2.47831668]
[1760123515416,5.1616,4040.9,4036.7,2.063]
[1760123515580,0.1132,4038.0,4036.7,2.063]
[1760123515781,0.099,4037.9,4036.8,1.821]
[1760123515980,0.099,4037.9,4034.7,0.461]
[1760123515981,0.3078,4037.8,4034.2,0.461]
[1760123516204,1.92,4037.5,4034.5,2.084]
[1760123516415,0.1132,4038.0,4034.4,2.063]
[1760123516416,2.5536,4037.1,4034.4,2.063]
[1760123516615,1.92,4036.9,4034.5,1.286]
[1760123516786,6.103,4036.8,4034.6,0.3352]
[1760123516981,6.5612,4038.0,4034.6,0.3352]
[1760123516982,3.866,4036.7,4034.6,0.3352]
[1760123517187,1.92,4036.5,4034.3,0.003]
[1760123517685,14.058,4037.8,4034.3,0.003]
[1760123517885,6.004,4037.7,4034.3,0.003]
[1760123518090,6.004,4037.7,4034.3,0.6366]
[1760123518314,18.698449,4037.6,4034.3,0.003]
[1760123518539,2.5536,4037.2,4034.3,0.003]
[1760123518683,1.92,4036.7,4034.3,0.003]
[1760123518883,0.388688,4036.9,4034.3,0.003]
[1760123519099,4.224,4036.8,4034.4,0.6336]
[1760123519307,0.388688,4036.9,4034.6,0.6336]
[1760123519624,10.0,4039.4,4034.5,0.63608495]
[1760123519625,0.241,4037.7,4035.0,0.6336]
[1760123519794,0.38960237,4037.6,4035.1,1.88778253]
[1760123519999,0.001,4037.5,4035.9,0.6336]
[1760123520215,0.38860237,4037.6,4036.1,0.6336]
[1760123520395,0.38857253,4035.2,4034.0,0.461]
[1760123520742,0.2098,4036.4,4034.6,0.0247856]
[1760123521024,0.1132,4038.0,4034.7,0.48578499]
[1760123521025,0.099,4037.2,4034.7,0.48578499]
[1760123521201,0.099,4037.2,4034.8,0.6336]
[1760123521399,0.1132,4038.0,4036.3,0.6336]
[1760123521711,0.2121,4038.7,4036.5,0.6336]
[1760123522022,0.38857731,4039.2,4036.7,3.11086184]
[1760123522197,0.2111,4039.6,4036.9,0.6336]
[1760123522408,0.2111,4039.5,4037.0,1.652]
[1760123522595,0.2122,4039.4,4037.0,3.716]
[1760123522800,0.099,4039.3,4037.1,0.02477025]
[1760123522996,0.099,4039.3,4037.3,0.6336]
[1760123523546,0.099,4039.3,4037.0,3.716]
[1760123523547,0.099,4039.2,4037.4,3.959]
[1760123523708,0.099,4039.1,4037.4,3.959]
[1760123523912,0.6336,4038.8,4034.4,0.461]
[1760123524111,2.019,4038.7,4035.1,14.5]
[1760123524422,1.92,4038.5,4035.2,1.45]
[1760123524604,0.099,4038.4,4035.3,6.023]
[1760123524800,2.019,4038.3,4035.3,6.023]
[1760123525101,1.92,4038.1,4035.3,6.023]
[1760123525301,2.019,4038.0,4035.4,6.04578069]
[1760123525514,0.099,4038.0,4035.5,1.39477807]
[1760123525701,0.099,4038.0,4035.6,1.11937946]
[1760123525902,0.099,4038.6,4035.8,0.6336]
[1760123526099,0.1132,4039.4,4035.9,0.461]
[1760123526299,0.1131,4039.9,4036.3,0.6336]
[1760123526539,0.0991,4039.8,4036.4,0.6956]
[1760123526858,0.0991,4039.8,4037.1,0.6336]
[1760123527033,0.0991,4039.8,4037.0,2.47708611]
[1760123527034,0.0991,4039.8,4037.3,0.6336]
[1760123527500,0.0991,4039.8,4037.2,0.066]
[1760123527999,0.0991,4039.8,4037.2,3.17656275]
[1760123528201,0.1131,4039.9,4037.3,8.516]
[1760123528202,0.0991,4039.7,4037.3,8.516]
[1760123528448,0.0991,4039.7,4036.5,15.80689165]
[1760123528449,18.064849,4039.5,4036.5,1.30689165]
[1760123528613,0.38847084,4039.2,4036.5,3.965]
[1760123528950,18.797549,4039.1,4039.0,995.472]
[1760123529150,18.797549,4039.1,4039.0,995.471]
[1760123529151,21.405549,4039.1,4039.0,995.471]
[1760123529515,21.91172293,4039.1,4039.0,995.471]
[1760123529708,21.405549,4039.1,4039.0,995.471]
[1760123529943,27.434549,4039.1,4039.0,995.471]
[1760123530187,39.11202275,4039.1,4039.0,995.471]
[1760123530394,33.08302275,4039.1,4039.0,988.0301976]
[1760123530561,39.11102275,4039.1,4039.0,988.0301976]
[1760123530740,41.35012968,4039.1,4039.0,988.0301976]
[1760123530939,41.35012968,4039.1,4039.0,986.16627754]
[1760123530940,35.6368675,4039.1,4039.0,986.16627754]
[1760123531196,38.96602275,4039.1,4039.0,985.81772162]
[1760123531483,24.43682117,4039.1,4039.0,985.81772162]
[1760123531693,0.0991,4039.1,4039.0,985.81772162]
[1760123531858,18.163949,4039.1,4039.0,985.81772162]
[1760123532281,21.32234742,4039.1,4039.0,985.81772162]
[1760123532479,33.00070232,4039.1,4039.0,985.81772162]
[1760123532783,32.6859645,4039.1,4039.0,985.81772162]
[1760123533078,32.6859645,4039.1,4039.0,982.09732042]
[1760123533079,38.7119645,4039.1,4039.0,982.09732042]
[1760123533297,38.7119645,4039.1,4039.0,963.49531442]
[1760123533298,39.02670232,4039.1,4039.0,963.49531442]
[1760123533444,39.02670232,4039.1,4039.0,931.78138486]
[1760123533681,40.51770232,4039.1,4039.0,917.59976793]
[1760123534013,23.40519709,4039.1,4039.0,848.42537445]
[1760123534314,53.12144327,4039.1,4039.0,810.5407904]
[1760123534485,23.33364194,4039.1,4039.0,773.21430648]
[1760123534692,29.00964194,4039.1,4039.0,681.49380085]
[1760123534880,37.69235752,4039.1,4039.0,675.25624149]
[1760123535077,56.70215885,4039.1,4039.0,665.01950522]
[1760123535274,56.70215885,4039.1,4039.0,657.27232871]
[1760123535571,46.19235752,4039.1,4039.0,596.95596022]
[1760123535771,36.71284552,4039.1,4039.0,596.70031722]
[1760123535974,36.71284552,4039.1,4039.0,590.98404325]
[1760123535975,36.22184552,4039.1,4039.0,590.98404325]
[1760123536209,34.76214685,4039.1,4039.0,1590.24094331]
[1760123536411,65.94284552,4039.1,4039.0,1557.69252234]
[1760123536576,66.3314321,4039.1,4039.0,1551.81732013]
[1760123536774,15.79377948,4039.1,4039.0,1451.45604481]
[1760123537111,47.62089128,4039.1,4039.0,1401.23378339]
[1760123537285,17.62089128,4039.1,4039.0,1396.94149962]
[1760123537493,48.84451729,4039.1,4039.0,1387.65869557]
[1760123537800,47.23216544,4039.1,4039.0,1387.16249557]
[1760123537977,67.45316544,4039.1,4039.0,1387.16249557]
[1760123538176,47.23216544,4039.1,4039.0,1385.62963806]
[1760123538386,43.86006544,4039.1,4039.0,1381.83415429]
[1760123538708,54.20186677,4039.1,4039.0,1379.68703859]
[1760123538909,56.32096886,4039.1,4039.0,1377.8147908]
[1760123539118,56.11429674,4039.1,4039.0,1377.8147908]
[1760123539410,56.11429674,4039.1,4039.0,1324.75850819]
[1760123539411,69.12896015,4039.1,4039.0,1324.75850819]
[1760123539608,69.12896015,4039.1,4039.0,1324.172165]
[1760123539771,48.89445406,4039.1,4039.0,1307.2445261]
[1760123539972,67.89182805,4039.1,4039.0,1290.8986296]
[1760123540179,67.89182805,4039.1,4039.0,1218.71496717]
[1760123540180,18.89445406,4039.1,4039.0,1218.71496717]
[1760123540398,18.67653643,4039.1,4039.0,1182.22136239]
[1760123540609,87.04141042,4039.1,4039.0,1136.70988061]
[1760123540811,87.19725145,4039.1,4039.0,1132.45695529]
[1760123541217,86.19725145,4039.1,4039.0,1130.45766129]
[1760123541376,85.92750954,4039.1,4039.0,1130.45766129]
[1760123541582,80.8596,4039.1,4039.0,1130.45766129]
[1760123541788,89.59870584,4039.1,4039.0,1127.90836729]
[1760123541994,91.02437652,4039.1,4039.0,1127.61293578]
[1760123542209,91.65797652,4039.1,4039.0,1127.61293578]
[1760123542384,91.65897652,4039.1,4039.0,1127.61293578]
[1760123542579,18.35997652,4039.1,4039.0,1077.09035866]
[1760123542925,52.31697652,4039.1,4039.0,1076.57881286]
[1760123543084,48.74867045,4039.1,4039.0,1072.45083356]
[1760123543286,52.70467045,4039.1,4039.0,1072.26920526]
[1760123543603,88.33717045,4039.1,4039.0,1072.26920526]
[1760123543915,92.94095721,4039.1,4039.0,1062.43163958]
[1760123544122,92.94095721,4039.1,4039.0,1058.45217463]
[1760123544418,93.67572706,4039.1,4039.0,1053.50217463]
[1760123544604,59.08712706,4039.1,4039.0,1051.02717463]
[1760123544918,85.73314073,4039.1,4039.0,1051.02717463]
[1760123545096,85.08535397,4039.1,4039.0,1051.02717463]
[1760123545292,89.68780874,4039.1,4039.0,1051.02717463]
[1760123545511,46.14430874,4039.1,4039.0,1051.02717463]
[1760123545683,45.01369056,4039.1,4039.0,1051.02717463]
[1760123545887,40.84660325,4039.1,4039.0,1051.02717463]
[1760123546120,11.86403173,4039.1,4039.0,1051.02717463]
[1760123546319,3.953,4039.1,4039.0,1051.02717463]
[1760123546494,0.1131,4039.9,4039.0,1051.02717463]
[1760123546700,1.26294663,4039.7,4039.0,1051.02717463]
[1760123547007,30.0,4039.8,4039.0,1051.02717463]
[1760123547393,30.0,4039.6,4039.0,1051.02717463]
[1760123547721,6.019,4039.5,4039.0,1051.02717463]
[1760123548023,10.38852406,4039.7,4039.0,1051.02717463]
[1760123548221,0.38852406,4039.7,4039.0,1051.02717463]
[1760123548636,0.49637383,4039.7,4039.0,1045.31515954]
[1760123548836,0.1131,4039.9,4039.0,1045.31515954]
[1760123549039,0.38843205,4039.6,4039.0,1045.31515954]
[1760123549205,0.1119,4042.2,4039.0,1049.60601589]
[1760123549405,0.38838179,4039.9,4039.0,1049.60601589]
[1760123549633,0.23447645,4042.2,4039.1,0.6336]
[1760123549844,0.23447645,4042.2,4039.3,0.6336]
[1760123549845,0.38830261,4040.3,4039.3,0.6336]
[1760123550048,0.23447645,4042.2,4039.5,0.6336]
[1760123550248,0.23447645,4042.2,4039.7,0.6336]
[1760123550465,0.23447645,4042.2,4039.9,0.6336]
[1760123550636,30.0,4045.0,4040.0,0.02475247]
[1760123550833,30.0,4045.0,4039.7,0.6336]
[1760123551034,0.38812089,4043.6,4039.7,0.6336]
[1760123551246,0.38812089,4043.6,4040.1,0.6336]
[1760123551417,2.45412089,4043.6,4040.2,0.02475124]
[1760123551734,0.254,4043.5,4040.2,0.02475124]
[1760123551936,2.174,4043.5,4040.3,0.6436]
[1760123552248,0.38810096,4042.7,4040.3,0.01]
[1760123552457,1.559,4042.6,4039.9,0.6336]
[1760123552619,1.559,4042.6,4039.6,0.52192]
[1760123552620,3.985,4042.5,4039.6,0.52192]
[1760123552825,3.985,4042.5,4039.4,0.323]
[1760123553345,1.92,4042.3,4039.2,0.2]
[1760123553546,0.38822416,4041.8,4039.3,0.02475676]
[1760123553718,0.38822416,4041.8,4039.3,0.65835676]
[1760123553919,0.24,4041.7,4039.3,0.6336]
[1760123554467,0.24,4041.7,4039.3,2.37031419]
[1760123554639,2.852,4041.6,4039.3,2.37031419]
[1760123554840,1.92,4043.0,4039.3,2.37031419]
[1760123554841,0.4318226,4045.8,4039.3,2.37031419]
[1760123555172,0.81491157,4045.6,4039.4,1.1073]
[1760123555480,0.38809925,4043.2,4039.8,0.6336]
[1760123555688,0.039,4043.1,4041.1,0.6336]
[1760123555847,0.38809925,4043.2,4041.2,3.947]
[1760123556170,0.239,4043.1,4041.3,3.947]
[1760123556391,0.38809925,4043.2,4041.4,0.6336]
[1760123556665,11.92,4044.8,4041.4,0.6336]
[1760123556864,0.38810519,4042.8,4041.5,0.45806]
[1760123557165,1.268,4042.8,4041.5,0.45806]
[1760123557462,0.3881125,4042.5,4041.3,3.947]
[1760123557666,0.3881125,4042.5,4039.9,8.519]
[1760123557667,0.1232,4041.3,4039.9,8.519]
[1760123557874,0.1232,4040.3,4040.0,3.943]
[1760123558031,0.001,4045.6,4040.6,0.6336]
[1760123558232,0.108,4044.9,4041.2,0.6336]
[1760123558433,0.38813397,4044.1,4041.4,0.6336]
[1760123558651,0.239,4044.0,4041.5,0.02474328]
[1760123558853,0.001,4043.1,4041.5,0.02474328]
[1760123559062,0.001,4043.1,4041.8,2.47413787]
[1760123559247,0.001,4043.1,4042.0,0.6336]
[1760123559565,0.001,4043.1,4042.2,3.10748616]
[1760123559770,0.001,4043.1,4042.3,0.02473839]
[1760123559971,0.001,4043.1,4042.5,0.6336]
[1760123560333,0.001,4043.1,4041.3,1.86168364]
[1760123560576,0.001,4043.1,4041.8,6.6386]
[1760123560771,0.001,4043.1,4042.0,0.6336]
[1760123561430,0.001,4043.1,4042.1,0.49843961]
[1760123561763,0.001,4043.1,4042.2,4.5726]
[1760123562250,0.001,4043.1,4042.4,0.6336]
[1760123562435,0.001,4043.1,4040.7,0.2214]
[1760123562636,0.001,4043.1,4040.8,12.45]
[1760123562962,0.001,4043.1,4040.9,29.06074645]
[1760123563468,0.001,4043.1,4040.9,1.31451]
[1760123563767,0.001,4043.1,4040.6,2.063]
[1760123563768,0.001,4043.1,4041.0,3.934]
[1760123564137,0.38811528,4042.9,4041.0,3.934]
[1760123564832,2.174,4042.8,4041.0,3.934]
[1760123565236,0.254,4042.8,4040.5,2.622]
[1760123565444,0.388152,4042.4,4040.5,2.622]
[1760123566731,2.157,4042.3,4040.5,2.622]
[1760123566932,1.92,4042.3,4040.5,2.622]
[1760123567267,0.001,4043.1,4040.5,2.622]
[1760123567496,0.38818468,4041.9,4040.5,2.622]
[1760123567687,0.001,4043.1,4040.5,2.622]
[1760123567893,0.38817315,4041.9,4040.6,0.6336]
[1760123568187,0.34,4042.5,4040.6,0.6336]
[1760123568490,0.001,4043.1,4040.7,0.2139]
[1760123568665,0.001,4043.1,4041.4,0.6336]
[1760123568870,0.001,4043.1,4041.6,0.6336]
[1760123569082,0.001,4043.1,4041.8,0.6336]
[1760123569280,0.001,4043.1,4041.8,3.10772517]
[1760123569590,0.001,4043.1,4042.0,0.6336]
[1760123569886,0.001,4043.1,4042.8,0.6336]
[1760123570088,0.001,4045.6,4043.0,0.6336]
[1760123570289,0.001,4045.6,4043.2,0.6336]
[1760123570494,0.001,4045.6,4043.3,0.02473227]
[1760123570713,0.001,4045.6,4043.5,0.6336]
[1760123570853,0.001,4045.6,4043.6,0.02473043]
[1760123571191,0.001,4045.6,4043.8,0.6336]
[1760123571501,0.12299036,4045.3,4044.0,0.6336]
[1760123571798,0.001,4045.6,4044.2,0.6336]
[1760123572096,0.001,4045.6,4044.1,16.563]
[1760123572097,0.001,4045.6,4044.4,0.6336]
[1760123572758,0.001,4045.6,4044.6,0.6336]
[1760123572958,0.001,4045.6,4044.8,0.6336]
[1760123573154,0.001,4045.6,4045.0,0.6336]
[1760123573464,0.001,4045.6,4045.0,3.924]
[1760123573671,0.001,4045.6,4044.5,0.6336]
[1760123573912,0.001,4045.6,4044.7,0.6336]
[1760123574204,0.001,4045.6,4044.2,0.2139]
[1760123574405,0.001,4045.6,4044.1,14.9475]
[1760123574587,0.001,4045.6,4044.2,6.6166]
[1760123574929,0.001,4045.6,4044.4,0.6336]
[1760123575133,0.001,4045.6,4044.5,3.92]
[1760123575631,0.001,4045.6,4044.6,0.02472432]
[1760123575836,0.001,4045.6,4044.6,1.32235675]
[1760123575985,0.001,4045.6,4044.8,0.6336]
[1760123576295,0.001,4045.6,4044.1,0.6336]
[1760123576495,0.001,4045.6,4044.3,0.6336]
[1760123576696,0.001,4045.6,4044.5,0.6336]
[1760123577409,0.001,4045.6,4044.6,3.916]
[1760123577613,0.001,4045.6,4043.1,0.4475]
[1760123577813,0.001,4045.6,4043.6,2.062]
[1760123578001,0.001,4045.6,4042.4,0.4475]
[1760123578191,0.001,4045.6,4042.5,8.777]
[1760123578391,0.001,4045.6,4042.6,0.92245]
[1760123578725,0.001,4045.6,4042.7,0.65833594]
[1760123578888,0.001,4045.6,4043.3,0.6336]
[1760123579089,0.001,4045.6,4043.4,3.94273166]
[1760123579290,0.001,4045.6,4043.7,0.6336]
[1760123579515,0.001,4045.6,4043.9,0.6336]
[1760123579727,0.001,4045.6,4044.8,0.6336]
[1760123579950,0.001,4045.6,4045.0,0.6336]
[1760123580119,0.001,4045.6,4045.0,5.16778788]
[1760123580441,0.001,4045.6,4045.0,5.61528788]
[1760123580641,0.001,4045.6,4045.0,6.81574718]
[1760123580807,0.001,4045.6,4045.0,4.3435593]
[1760123581324,0.001,4045.6,4045.0,1004.9961]
[1760123581519,0.001,4045.6,4045.0,1006.6106]
[1760123582217,0.001,4045.6,4045.0,1007.0581]
[1760123582416,0.001,4049.3,4045.9,3.10523795]
[1760123582652,0.1252151,4047.9,4046.5,2.47121937]
[1760123582856,0.001,4049.3,4046.7,0.6336]
[1760123583026,0.12685785,4049.3,4047.1,0.6336]
[1760123583228,0.12685785,4049.3,4047.3,0.6336]
[1760123583552,0.12685785,4049.3,4047.4,0.65830721]
[1760123583752,0.12685785,4049.3,4047.6,0.6336]
[1760123585040,0.12685785,4049.3,4047.2,0.4475]
[1760123585245,0.12685785,4049.3,4046.3,0.4475]
[1760123585451,0.12685785,4049.3,4045.8,0.2139]
[1760123585619,30.45327945,4049.2,4045.9,0.27]
[1760123585821,1.92,4049.0,4045.6,3.913]
[1760123586222,0.6336,4048.9,4045.0,1000.0]
[1760123586541,0.6336,4048.9,4045.1,2.37031419]
[1760123586744,2.5536,4048.5,4045.0,1000.0]
[1760123586952,2.5536,4048.1,4045.1,2.061]
[1760123587154,0.6336,4048.8,4045.1,5.99672126]
[1760123587321,1.92,4047.9,4045.1,5.972]
[1760123587516,2.05651428,4049.3,4045.2,0.65832065]
[1760123587717,1.161,4048.5,4045.4,0.6336]
[1760123587913,10.422,4049.2,4045.6,0.6336]
[1760123587914,2.763,4048.4,4045.6,0.6336]
[1760123588117,1.92,4048.3,4045.7,0.0247176]
[1760123588318,1.92,4048.3,4045.6,0.6336]
[1760123588822,0.38762123,4047.9,4045.6,0.6336]
[1760123589518,0.38762123,4047.9,4045.7,0.0247176]
[1760123589721,0.38762123,4047.9,4045.6,1.53139142]
[1760123589917,0.1232,4045.7,4045.6,1.53139142]
[1760123590120,0.1232,4045.7,4045.3,2.37031419]
[1760123590343,0.1232,4045.7,4045.5,0.6336]
[1760123590549,0.107,4047.7,4045.5,0.6336]
[1760123590922,0.1232,4045.5,4045.2,2.061]
[1760123591172,0.107,4047.5,4045.4,0.6336]
[1760123591322,0.38765262,4047.6,4045.5,5.969]
[1760123591521,0.38765262,4047.6,4045.6,3.908]
[1760123591970,6.441,4048.7,4045.7,0.6336]
[1760123591971,0.245,4048.7,4045.7,0.6336]
[1760123592265,0.38763934,4048.1,4045.7,0.6336]
[1760123593058,0.1232,4045.9,4045.8,0.02471699]
[1760123593228,2.061,4048.9,4045.8,0.02471699]
[1760123593229,0.01986721,4051.2,4045.8,0.4475]
[1760123593425,0.01986721,4051.2,4046.0,0.6336]
[1760123593649,0.01986721,4051.2,4045.9,0.74856095]
[1760123593650,0.38750515,4049.1,4046.6,0.6336]
[1760123593852,10.2475,4051.0,4046.8,0.6336]
[1760123594156,0.38748119,4050.0,4047.0,3.10455557]
[1760123594538,0.38748119,4050.0,4047.2,0.6336]
[1760123594734,0.081,4050.8,4047.7,0.6336]
[1760123594957,0.081,4050.8,4047.8,6.4125]
[1760123595118,0.38745904,4050.9,4047.9,0.65830416]
[1760123595322,0.38745904,4050.9,4048.1,0.6336]
[1760123595559,0.38745904,4050.9,4048.3,0.6336]
[1760123596764,0.001,4049.1,4048.5,0.6336]
[1760123597475,0.001,4049.1,4048.6,5.96]
[1760123597662,0.001,4049.1,4047.4,0.6336]
[1760123597840,0.001,4049.1,4048.1,0.6336]
[1760123598039,0.001,4049.1,4048.3,0.6336]
[1760123598927,0.001,4049.1,4048.5,0.6336]
[1760123599157,0.001,4049.1,4047.1,0.4543]
[1760123599346,0.001,4049.1,4047.2,8.769]
[1760123599544,0.001,4049.1,4047.3,0.92233]
[1760123599746,0.001,4049.1,4047.4,9.81970721]
[1760123599945,0.001,4049.1,4047.5,0.6336]
[1760123600254,0.001,4049.1,4048.1,3.10389254]
[1760123600455,0.001,4049.1,4047.5,0.4543]
[1760123600456,0.001,4049.1,4048.9,0.6336]
[1760123600661,0.001,4049.1,4049.0,6.83099745]
[1760123600838,0.001,4049.1,4049.0,6.8063]
[1760123601035,0.001,4049.1,4049.0,7.2606]
[1760123601274,0.001,4049.1,4048.3,0.4543]
[1760123601479,0.001,4049.1,4048.4,4.0766]
[1760123601884,0.001,4049.1,4048.4,0.6336]
[1760123602085,0.001,4049.1,4048.6,0.6336]
[1760123602463,0.001,4049.1,4048.7,1.134]
[1760123602875,0.001,4049.1,4048.9,0.6336]
[1760123603191,0.001,4049.1,4049.0,0.02469745]
[1760123603388,0.001,4049.1,4049.0,1.11259745]
[1760123603688,0.1242,4049.1,4049.0,1.0879]
[1760123604191,0.1242,4049.1,4049.0,4.5276]
[1760123606294,0.1242,4049.1,4047.7,0.4543]
[1760123606471,0.001,4049.1,4048.4,0.6336]
[1760123606665,0.001,4049.1,4048.6,0.6336]
[1760123607190,0.1232,4048.6,4048.5,0.394]
[1760123607394,0.1232,4048.6,4046.8,0.4543]
[1760123607590,0.001,4049.1,4047.0,6.436]
[1760123607790,0.1232,4047.1,4047.0,6.436]
[1760123608960,0.1232,4047.1,4046.2,0.4543]
[1760123609197,0.106,4049.0,4046.3,5.951]
[1760123609496,2.026,4049.0,4046.3,5.951]
[1760123610263,2.026,4049.0,4046.4,0.02471332]
[1760123610461,0.3885512,4049.1,4046.4,0.02471332]
[1760123610689,0.1232,4046.5,4046.4,0.65831332]
[1760123610875,0.1232,4046.5,4046.4,0.6336]
[1760123611263,0.1232,4046.5,4046.4,1.11261332]
[1760123611579,0.1232,4046.9,4046.4,2.56173133]
[1760123611786,0.1232,4046.9,4046.6,0.6336]
[1760123612206,0.1232,4046.9,4046.8,0.6336]
[1760123612376,0.1232,4046.9,4046.8,4.9759]
[1760123612764,0.1232,4046.9,4046.8,1.0879]
[1760123612965,0.1232,4046.9,4046.8,3.0296]
[1760123613257,0.1232,4046.9,4046.8,5.50847088]
[1760123613464,0.1232,4047.1,4047.0,3.10456614]
[1760123613705,0.001,4049.1,4047.5,0.6336]
[1760123614007,0.001,4049.1,4047.7,0.6336]
[1760123614174,0.001,4049.1,4047.8,2.92870477]
[1760123614578,0.001,4049.1,4047.9,0.6336]
[1760123614783,0.1232,4048.1,4047.9,0.6336]
[1760123615103,0.1232,4048.1,4048.0,1.843]
[1760123615306,0.001,4049.1,4048.0,1.843]
[1760123616611,0.1232,4048.0,4046.3,0.4543]
[1760123616795,0.0272,4049.0,4047.2,0.6336]
[1760123616995,0.0272,4048.9,4047.3,3.66]
[1760123617196,0.0272,4048.8,4046.4,2.059]
[1760123617412,0.0272,4048.7,4046.5,3.883]